[Event "*** Titled Tuesday Blitz"]
[Site "Chess.com"]
[Date "2021.02.16"]
[Round "2"]
[White "bascheyaro"]
[Black "Kostukov_Alex"]
[Result "1-0"]
[WhiteElo "2696"]
[BlackElo "2354"]
[TimeControl "180+1"]
[EndTime "10:18:44 PST"]
[Termination "bascheyaro won by checkmate"]

1. d4 {[%clk 0:03:00.9]} 1... g6 {[%clk 0:02:39.1]} 2. Nf3 {[%clk 0:03:00.3]}
2... Bg7 {[%clk 0:02:39.1]} 3. c4 {[%clk 0:03:01.2]} 3... d6 {[%clk 0:02:38.7]}
4. Nc3 {[%clk 0:02:59.9]} 4... e5 {[%clk 0:02:38.9]} 5. Bg5 {[%clk 0:02:59.3]}
5... f6 {[%clk 0:02:38.9]} 6. Bh4 {[%clk 0:02:58.8]} 6... g5 {[%clk 0:02:39.2]}
7. Bg3 {[%clk 0:02:59.1]} 7... h5 {[%clk 0:02:39.4]} 8. h3 {[%clk 0:02:54]} 8...
Qe7 {[%clk 0:02:22.3]} 9. e3 {[%clk 0:02:53.8]} 9... Nh6 {[%clk 0:02:08.7]} 10.
Bd3 {[%clk 0:02:52.9]} 10... O-O {[%clk 0:02:07.8]} 11. Nd5 {[%clk 0:02:52.6]}
11... Qf7 {[%clk 0:02:05.8]} 12. Qc2 {[%clk 0:02:52.4]} 12... h4 {[%clk
0:01:52.2]} 13. Bg6 {[%clk 0:01:52.2]} 13... Qd7 {[%clk 0:01:39.5]} 14. Bh2
{[%clk 0:01:37.6]} 14... c6 {[%clk 0:01:39.2]} 15. Nc3 {[%clk 0:01:35.1]} 15...
Na6 {[%clk 0:01:08.5]} 16. O-O-O {[%clk 0:01:31.6]} 16... Qe7 {[%clk 0:00:37.5]}
17. dxe5 {[%clk 0:01:24.5]} 17... dxe5 {[%clk 0:00:36.3]} 18. Ne4 {[%clk
0:01:15.3]} 18... Be6 {[%clk 0:00:33.3]} 19. b3 {[%clk 0:01:13.8]} 19... Rad8
{[%clk 0:00:31.1]} 20. g3 {[%clk 0:01:08.9]} 20... Nb4 {[%clk 0:00:30.3]} 21.
Qb1 {[%clk 0:01:04.8]} 21... b5 {[%clk 0:00:28.2]} 22. c5 {[%clk 0:01:02.9]}
22... f5 {[%clk 0:00:25]} 23. Nd6 {[%clk 0:01:01.8]} 23... Qf6 {[%clk
0:00:19.4]} 24. Bh5 {[%clk 0:01:00.8]} 24... e4 {[%clk 0:00:19.9]} 25. Nd4
{[%clk 0:01:00.9]} 25... Bd5 {[%clk 0:00:17.5]} 26. gxh4 {[%clk 0:01:00.6]}
26... gxh4 {[%clk 0:00:16.5]} 27. Rhg1 {[%clk 0:01:00.9]} 27... Kh8 {[%clk
0:00:16.6]} 28. Bf4 {[%clk 0:01:00.3]} 28... Rxd6 {[%clk 0:00:16.4]} 29. cxd6
{[%clk 0:01:00]} 29... Rd8 {[%clk 0:00:16.3]} 30. Rg6 {[%clk 0:01:00]} 30... Qf8
{[%clk 0:00:15.9]} 31. a3 {[%clk 0:00:57.9]} 31... Nd3+ {[%clk 0:00:15.9]} 32.
Rxd3 {[%clk 0:00:58.3]} 32... exd3 {[%clk 0:00:16.8]} 33. Qxd3 {[%clk
0:00:58.2]} 33... Be4 {[%clk 0:00:17.4]} 34. Qd1 {[%clk 0:00:56.9]} 34... c5
{[%clk 0:00:17.9]} 35. Ne6 {[%clk 0:00:56.9]} 35... Qg8 {[%clk 0:00:15.4]} 36.
Nxg7 {[%clk 0:00:54.5]} 36... Qxg7 {[%clk 0:00:06.8]} 37. Rxg7 {[%clk
0:00:53.7]} 37... Kxg7 {[%clk 0:00:07.7]} 38. Be5+ {[%clk 0:00:53]} 38... Kf8
{[%clk 0:00:06.5]} 39. f3 {[%clk 0:00:52.7]} 39... Bc6 {[%clk 0:00:05.8]} 40.
Qe1 {[%clk 0:00:52.5]} 40... Nf7 {[%clk 0:00:03.8]} 41. Bxf7 {[%clk 0:00:52]}
41... Kxf7 {[%clk 0:00:04.7]} 42. Qxh4 {[%clk 0:00:52.1]} 42... Rg8 {[%clk
0:00:05.2]} 43. Qf6+ {[%clk 0:00:51.7]} 43... Ke8 {[%clk 0:00:05.4]} 44. Qe7#
{[%clk 0:00:52.6]} 1-0

[Event "*** Titled Tuesday Blitz"]
[Site "Chess.com"]
[Date "2021.02.16"]
[Round "2"]
[White "lukas_111111"]
[Black "Chopper1905"]
[Result "0-1"]
[WhiteElo "2578"]
[BlackElo "2937"]
[TimeControl "180+1"]
[EndTime "10:18:47 PST"]
[Termination "Chopper1905 won by resignation"]

1. d4 {[%clk 0:03:00.9]} 1... Nf6 {[%clk 0:03:00.2]} 2. c4 {[%clk 0:02:59.5]}
2... g6 {[%clk 0:03:00.7]} 3. f3 {[%clk 0:02:58.6]} 3... c5 {[%clk 0:02:55.2]}
4. d5 {[%clk 0:02:58.1]} 4... Bg7 {[%clk 0:02:55.4]} 5. e4 {[%clk 0:02:57.8]}
5... d6 {[%clk 0:02:54.8]} 6. Nc3 {[%clk 0:02:58]} 6... e6 {[%clk 0:02:55.2]} 7.
Nge2 {[%clk 0:02:58.1]} 7... O-O {[%clk 0:02:53.7]} 8. Ng3 {[%clk 0:02:57.5]}
8... exd5 {[%clk 0:02:47.1]} 9. cxd5 {[%clk 0:02:58.4]} 9... Nbd7 {[%clk
0:02:46.1]} 10. Be2 {[%clk 0:02:51.8]} 10... a6 {[%clk 0:02:43]} 11. a4 {[%clk
0:02:51.2]} 11... h5 {[%clk 0:02:42.1]} 12. O-O {[%clk 0:02:45.1]} 12... Ne5
{[%clk 0:02:38.1]} 13. f4 {[%clk 0:02:29.2]} 13... Neg4 {[%clk 0:02:30]} 14. h3
{[%clk 0:02:21.6]} 14... Nh6 {[%clk 0:02:30]} 15. e5 {[%clk 0:02:09.7]} 15...
Ne8 {[%clk 0:02:05.9]} 16. Nge4 {[%clk 0:01:55.2]} 16... Nf5 {[%clk 0:02:03.7]}
17. Bc4 {[%clk 0:01:43.4]} 17... dxe5 {[%clk 0:01:59.1]} 18. fxe5 {[%clk
0:01:38]} 18... Bxe5 {[%clk 0:02:00]} 19. Bg5 {[%clk 0:01:33]} 19... f6 {[%clk
0:02:00.1]} 20. Bf4 {[%clk 0:01:16.9]} 20... Ned6 {[%clk 0:01:44.2]} 21. Bxe5
{[%clk 0:01:09.9]} 21... Nxc4 {[%clk 0:01:44.4]} 22. Bxf6 {[%clk 0:00:42.9]}
22... Rxf6 {[%clk 0:01:41]} 23. Nxf6+ {[%clk 0:00:43.8]} 23... Qxf6 {[%clk
0:01:41.5]} 24. Ne4 {[%clk 0:00:39.6]} 24... Qd4+ {[%clk 0:01:12.6]} 25. Qxd4
{[%clk 0:00:38.4]} 25... cxd4 {[%clk 0:01:13.5]} 26. g4 {[%clk 0:00:31.8]} 26...
hxg4 {[%clk 0:01:12.8]} 27. hxg4 {[%clk 0:00:32]} 27... Nh4 {[%clk 0:00:57.6]}
28. Rac1 {[%clk 0:00:21]} 28... Ne3 {[%clk 0:00:57.8]} 29. Rf6 {[%clk
0:00:18.1]} 29... Nxg4 {[%clk 0:00:48.4]} 30. Rd6 {[%clk 0:00:16.7]} 30... Bf5
{[%clk 0:00:45.2]} 31. Nc5 {[%clk 0:00:16.7]} 31... d3 {[%clk 0:00:39.6]} 32.
Nxb7 {[%clk 0:00:13.9]} 32... Ne3 {[%clk 0:00:33.7]} 33. Rdc6 {[%clk 0:00:03.3]}
33... d2 {[%clk 0:00:33.1]} 34. d6 {[%clk 0:00:02.6]} 0-1

[Event "*** Titled Tuesday Blitz"]
[Site "Chess.com"]
[Date "2021.02.16"]
[Round "2"]
[White "GM_Crest"]
[Black "PlotnikovPavel"]
[Result "1-0"]
[WhiteElo "2761"]
[BlackElo "2498"]
[TimeControl "180+1"]
[EndTime "10:18:47 PST"]
[Termination "GM_Crest won by resignation"]

1. d4 {[%clk 0:02:59]} 1... Nf6 {[%clk 0:02:59.1]} 2. c4 {[%clk 0:02:58.3]} 2...
g6 {[%clk 0:02:59.2]} 3. Nc3 {[%clk 0:02:56.8]} 3... Bg7 {[%clk 0:02:59.6]} 4.
e4 {[%clk 0:02:56.4]} 4... d6 {[%clk 0:02:58.2]} 5. Nf3 {[%clk 0:02:56.2]} 5...
O-O {[%clk 0:02:58.8]} 6. Be2 {[%clk 0:02:56.4]} 6... e5 {[%clk 0:02:59]} 7. Be3
{[%clk 0:02:56.4]} 7... Nc6 {[%clk 0:02:58.3]} 8. d5 {[%clk 0:02:55.7]} 8... Ne7
{[%clk 0:02:58.5]} 9. Nd2 {[%clk 0:02:55.7]} 9... Ne8 {[%clk 0:02:53.6]} 10. g4
{[%clk 0:02:55]} 10... b6 {[%clk 0:02:49.5]} 11. O-O {[%clk 0:02:53.7]} 11... f5
{[%clk 0:02:45.5]} 12. f3 {[%clk 0:02:48]} 12... f4 {[%clk 0:02:38.1]} 13. Bf2
{[%clk 0:02:48]} 13... h5 {[%clk 0:02:37.8]} 14. h3 {[%clk 0:02:47.3]} 14...
hxg4 {[%clk 0:02:35.8]} 15. fxg4 {[%clk 0:02:47.2]} 15... g5 {[%clk 0:02:36.4]}
16. Nf3 {[%clk 0:02:46.6]} 16... Ng6 {[%clk 0:02:36.3]} 17. b4 {[%clk
0:02:44.7]} 17... a5 {[%clk 0:02:31.2]} 18. a3 {[%clk 0:02:44.4]} 18... Bd7
{[%clk 0:02:27.8]} 19. c5 {[%clk 0:02:43]} 19... axb4 {[%clk 0:02:24.6]} 20.
axb4 {[%clk 0:02:42.8]} 20... Rxa1 {[%clk 0:02:24.5]} 21. Qxa1 {[%clk
0:02:42.5]} 21... bxc5 {[%clk 0:02:23.2]} 22. bxc5 {[%clk 0:02:42.5]} 22... Nf6
{[%clk 0:02:20.2]} 23. c6 {[%clk 0:02:15.8]} 23... Bc8 {[%clk 0:02:10]} 24. Qa5
{[%clk 0:02:10.2]} 24... Qe7 {[%clk 0:02:07.2]} 25. Rb1 {[%clk 0:02:08.9]} 25...
Bxg4 {[%clk 0:01:51.6]} 26. hxg4 {[%clk 0:02:07.2]} 26... Nxg4 {[%clk
0:01:52.5]} 27. Rb7 {[%clk 0:02:04.1]} 27... Nxf2 {[%clk 0:01:52.5]} 28. Rxc7
{[%clk 0:01:44]} 28... Qf6 {[%clk 0:01:50.3]} 29. Kxf2 {[%clk 0:01:35.4]} 29...
g4 {[%clk 0:01:50.8]} 30. Qa7 {[%clk 0:01:24.7]} 30... gxf3 {[%clk 0:01:48.1]}
31. Bxf3 {[%clk 0:01:24.6]} 31... Qh4+ {[%clk 0:01:47.8]} 32. Ke2 {[%clk
0:01:24.6]} 32... Qh2+ {[%clk 0:01:32.3]} 33. Qf2 {[%clk 0:01:22.4]} 33... Qh3
{[%clk 0:01:26.3]} 34. Qg2 {[%clk 0:01:11.2]} 34... Qxg2+ {[%clk 0:01:17.7]} 35.
Bxg2 {[%clk 0:01:10.5]} 35... Nh4 {[%clk 0:01:17.6]} 36. Bh3 {[%clk 0:01:02.6]}
36... f3+ {[%clk 0:01:08.4]} 37. Kf2 {[%clk 0:01:02.5]} 37... Ng6 {[%clk
0:00:25.1]} 38. Rxg7+ {[%clk 0:00:53.7]} 38... Kxg7 {[%clk 0:00:22.9]} 39. c7
{[%clk 0:00:53.8]} 39... Ne7 {[%clk 0:00:16.9]} 40. Nb5 {[%clk 0:00:53.2]} 40...
Nc8 {[%clk 0:00:15.3]} 41. Bxc8 {[%clk 0:00:50.8]} 41... Rxc8 {[%clk 0:00:15.4]}
42. Nxd6 {[%clk 0:00:51.2]} 42... Rh8 {[%clk 0:00:10.2]} 43. c8=Q {[%clk
0:00:50.2]} 43... Rxc8 {[%clk 0:00:10.9]} 44. Nxc8 {[%clk 0:00:49.7]} 44... Kf7
{[%clk 0:00:10.8]} 45. Kxf3 {[%clk 0:00:49.8]} 1-0

[Event "*** Titled Tuesday Blitz"]
[Site "Chess.com"]
[Date "2021.02.16"]
[Round "2"]
[White "TeukkaSalama"]
[Black "canary2016"]
[Result "1-0"]
[WhiteElo "2381"]
[BlackElo "1978"]
[TimeControl "180+1"]
[EndTime "10:18:47 PST"]
[Termination "TeukkaSalama won on time"]

1. d4 {[%clk 0:03:00.9]} 1... d5 {[%clk 0:02:59.5]} 2. Bf4 {[%clk 0:02:59.1]}
2... Nf6 {[%clk 0:02:57.9]} 3. e3 {[%clk 0:02:59.3]} 3... e6 {[%clk 0:02:57.8]}
4. Nf3 {[%clk 0:02:59.2]} 4... Bd6 {[%clk 0:02:57.7]} 5. Bg3 {[%clk 0:02:59.9]}
5... c5 {[%clk 0:02:57.5]} 6. c3 {[%clk 0:02:59.8]} 6... Qc7 {[%clk 0:02:57.4]}
7. dxc5 {[%clk 0:02:59.4]} 7... Qxc5 {[%clk 0:02:55.7]} 8. b4 {[%clk 0:02:58.7]}
8... Qc7 {[%clk 0:02:54.7]} 9. Nbd2 {[%clk 0:02:55]} 9... Nbd7 {[%clk 0:02:52]}
10. Rc1 {[%clk 0:02:53.9]} 10... O-O {[%clk 0:02:50.9]} 11. c4 {[%clk
0:02:53.2]} 11... Bxg3 {[%clk 0:02:32.5]} 12. hxg3 {[%clk 0:02:53.3]} 12... dxc4
{[%clk 0:02:29.7]} 13. Nxc4 {[%clk 0:02:50.5]} 13... Nb6 {[%clk 0:02:07.3]} 14.
Nce5 {[%clk 0:02:45]} 14... Qe7 {[%clk 0:02:02.8]} 15. a3 {[%clk 0:02:43.8]}
15... Nbd5 {[%clk 0:01:57]} 16. Bd3 {[%clk 0:02:29.2]} 16... Rd8 {[%clk
0:01:53]} 17. Ng5 {[%clk 0:02:15.8]} 17... g6 {[%clk 0:01:30.7]} 18. Ngxf7
{[%clk 0:01:43.9]} 18... Rf8 {[%clk 0:01:24]} 19. Bxg6 {[%clk 0:01:32.4]} 19...
hxg6 {[%clk 0:00:49.1]} 20. Rh8+ {[%clk 0:00:56]} 20... Kg7 {[%clk 0:00:43.3]}
21. Rxf8 {[%clk 0:00:56.9]} 21... Qxf8 {[%clk 0:00:36.9]} 22. Qd3 {[%clk
0:00:53.8]} 22... Ne7 {[%clk 0:00:20.2]} 23. Rc7 {[%clk 0:00:48.9]} 23... Nfd5
{[%clk 0:00:17.8]} 24. Rc4 {[%clk 0:00:34.5]} 24... b5 {[%clk 0:00:16.3]} 25.
Rg4 {[%clk 0:00:33.6]} 25... Nf6 {[%clk 0:00:05.2]} 26. Rxg6+ {[%clk 0:00:31.9]}
26... Kh7 {[%clk 0:00:03]} 27. Rxf6+ {[%clk 0:00:29.6]} 27... Nf5 {[%clk
0:00:02.2]} 28. Ng5+ {[%clk 0:00:23.4]} 28... Kg7 {[%clk 0:00:01.6]} 29. Rxf8
{[%clk 0:00:24.3]} 29... Kxf8 {[%clk 0:00:01.7]} 30. Qd8+ {[%clk 0:00:23.4]}
30... Kg7 {[%clk 0:00:01.7]} 31. Nxe6+ {[%clk 0:00:20.9]} 1-0

[Event "*** Titled Tuesday Blitz"]
[Site "Chess.com"]
[Date "2021.02.16"]
[Round "2"]
[White "mikolka1985"]
[Black "ViditYT"]
[Result "1/2-1/2"]
[WhiteElo "2603"]
[BlackElo "3010"]
[TimeControl "180+1"]
[EndTime "10:18:48 PST"]
[Termination "Game drawn by repetition"]

1. d4 {[%clk 0:02:57.8]} 1... Nf6 {[%clk 0:02:58.3]} 2. c4 {[%clk 0:02:57.3]}
2... e6 {[%clk 0:02:58.7]} 3. Nf3 {[%clk 0:02:56.3]} 3... d5 {[%clk 0:02:55.7]}
4. Nc3 {[%clk 0:02:55.4]} 4... Nbd7 {[%clk 0:02:55.3]} 5. cxd5 {[%clk
0:02:53.8]} 5... exd5 {[%clk 0:02:55.4]} 6. Bg5 {[%clk 0:02:53.7]} 6... c6
{[%clk 0:02:51.5]} 7. e3 {[%clk 0:02:50.5]} 7... h6 {[%clk 0:02:50.7]} 8. Bh4
{[%clk 0:02:49.2]} 8... g5 {[%clk 0:02:50.9]} 9. Bg3 {[%clk 0:02:48.8]} 9... Nh5
{[%clk 0:02:51.1]} 10. Bd3 {[%clk 0:02:37.1]} 10... Nxg3 {[%clk 0:02:46]} 11.
hxg3 {[%clk 0:02:36.2]} 11... Bg7 {[%clk 0:02:46.7]} 12. a3 {[%clk 0:02:26.5]}
12... Nb6 {[%clk 0:02:45.5]} 13. b4 {[%clk 0:02:21.6]} 13... Be6 {[%clk
0:02:41.5]} 14. Nd2 {[%clk 0:02:20.4]} 14... Qe7 {[%clk 0:02:35.8]} 15. Nb3
{[%clk 0:02:19.4]} 15... O-O {[%clk 0:02:15.7]} 16. O-O {[%clk 0:02:17.1]} 16...
Nc4 {[%clk 0:02:00]} 17. Nc5 {[%clk 0:01:37.9]} 17... Rad8 {[%clk 0:01:56.5]}
18. Qc2 {[%clk 0:01:37.3]} 18... Bc8 {[%clk 0:01:51]} 19. b5 {[%clk 0:01:31.5]}
19... b6 {[%clk 0:01:21.5]} 20. Nb3 {[%clk 0:01:30.3]} 20... cxb5 {[%clk
0:01:20.3]} 21. Nxb5 {[%clk 0:01:25.8]} 21... a6 {[%clk 0:01:09.4]} 22. Nc3
{[%clk 0:01:25.3]} 22... Be6 {[%clk 0:01:06.5]} 23. a4 {[%clk 0:01:17]} 23...
Rc8 {[%clk 0:01:05.8]} 24. Rfc1 {[%clk 0:01:14.9]} 24... Rc7 {[%clk 0:01:00.1]}
25. Nd2 {[%clk 0:01:09]} 25... Rfc8 {[%clk 0:00:50.9]} 26. Nxc4 {[%clk 0:01:07]}
26... dxc4 {[%clk 0:00:51]} 27. Bh7+ {[%clk 0:01:06.5]} 27... Kh8 {[%clk
0:00:50.8]} 28. Rcb1 {[%clk 0:01:06.5]} 28... Rb8 {[%clk 0:00:47.7]} 29. Bf5
{[%clk 0:01:05.3]} 29... Rcb7 {[%clk 0:00:44.7]} 30. Be4 {[%clk 0:00:55.2]}
30... Rc7 {[%clk 0:00:40.7]} 31. Rb2 {[%clk 0:00:54.8]} 31... Qd6 {[%clk
0:00:30.5]} 32. Rab1 {[%clk 0:00:54.3]} 32... Rcc8 {[%clk 0:00:24.1]} 33. Bf5
{[%clk 0:00:52.4]} 33... Rc7 {[%clk 0:00:19.4]} 34. g4 {[%clk 0:00:47]} 34...
Rcb7 {[%clk 0:00:18.8]} 35. Be4 {[%clk 0:00:42.9]} 35... Rc7 {[%clk 0:00:19.2]}
36. Bf5 {[%clk 0:00:42.7]} 36... Rcb7 {[%clk 0:00:19.6]} 37. Be4 {[%clk
0:00:24.9]} 37... Rc7 {[%clk 0:00:19.4]} 38. Bf5 {[%clk 0:00:24.7]} 1/2-1/2

[Event "*** Titled Tuesday Blitz"]
[Site "Chess.com"]
[Date "2021.02.16"]
[Round "2"]
[White "ChainsOfFantasia"]
[Black "Chernov_Alexander_A"]
[Result "1-0"]
[WhiteElo "2478"]
[BlackElo "2293"]
[TimeControl "180+1"]
[EndTime "10:18:49 PST"]
[Termination "ChainsOfFantasia won by resignation"]

1. d4 {[%clk 0:03:00.9]} 1... Nf6 {[%clk 0:02:58.8]} 2. Nf3 {[%clk 0:03:01.2]}
2... e6 {[%clk 0:02:58.3]} 3. c4 {[%clk 0:03:01.6]} 3... b6 {[%clk 0:02:57.1]}
4. a3 {[%clk 0:03:01.1]} 4... Bb7 {[%clk 0:02:56]} 5. Nc3 {[%clk 0:03:01.1]}
5... d5 {[%clk 0:02:55.7]} 6. cxd5 {[%clk 0:03:02]} 6... Nxd5 {[%clk 0:02:55.5]}
7. e3 {[%clk 0:03:02.5]} 7... Be7 {[%clk 0:02:54.5]} 8. Bb5+ {[%clk 0:03:02.2]}
8... c6 {[%clk 0:02:53.7]} 9. Bd3 {[%clk 0:03:02.7]} 9... O-O {[%clk 0:02:53.5]}
10. O-O {[%clk 0:03:02]} 10... c5 {[%clk 0:02:47.4]} 11. Qe2 {[%clk 0:02:51.3]}
11... cxd4 {[%clk 0:02:43.2]} 12. exd4 {[%clk 0:02:46.8]} 12... Nd7 {[%clk
0:02:41.8]} 13. Ne4 {[%clk 0:02:39.6]} 13... N7f6 {[%clk 0:02:38.8]} 14. Bg5
{[%clk 0:02:39.6]} 14... h6 {[%clk 0:02:21.6]} 15. Bd2 {[%clk 0:02:34]} 15...
Rc8 {[%clk 0:02:13.2]} 16. Rac1 {[%clk 0:02:21.6]} 16... Rc7 {[%clk 0:01:52.2]}
17. Ne5 {[%clk 0:02:13.8]} 17... Nxe4 {[%clk 0:01:29.2]} 18. Bxe4 {[%clk
0:02:03.4]} 18... Bf6 {[%clk 0:01:18.1]} 19. Rxc7 {[%clk 0:01:59]} 19... Qxc7
{[%clk 0:01:17.4]} 20. Rc1 {[%clk 0:01:59.9]} 20... Qd6 {[%clk 0:01:14.8]} 21.
Bb1 {[%clk 0:01:57.4]} 21... Be7 {[%clk 0:00:54.2]} 22. Qe4 {[%clk 0:01:43.7]}
22... f5 {[%clk 0:00:51.3]} 23. Qe2 {[%clk 0:01:36]} 23... Rc8 {[%clk
0:00:48.3]} 24. Rxc8+ {[%clk 0:01:32.5]} 24... Bxc8 {[%clk 0:00:39.4]} 25. g4
{[%clk 0:01:27.3]} 25... Nf6 {[%clk 0:00:30.9]} 26. gxf5 {[%clk 0:01:24.3]}
26... exf5 {[%clk 0:00:29.9]} 27. Bb4 {[%clk 0:01:07.7]} 27... Qe6 {[%clk
0:00:23.4]} 28. Bxe7 {[%clk 0:00:49.9]} 28... Qxe7 {[%clk 0:00:23.2]} 29. Ba2+
{[%clk 0:00:50.7]} 29... Be6 {[%clk 0:00:20.2]} 30. Ng6 {[%clk 0:00:44.7]} 30...
Qe8 {[%clk 0:00:15.6]} 31. Qxe6+ {[%clk 0:00:43.4]} 31... Qxe6 {[%clk 0:00:14]}
32. Bxe6+ {[%clk 0:00:44.3]} 32... Kh7 {[%clk 0:00:14.1]} 33. Bxf5 {[%clk
0:00:44.8]} 33... Kg8 {[%clk 0:00:13.3]} 34. Kg2 {[%clk 0:00:43.4]} 34... Kf7
{[%clk 0:00:13.3]} 35. Ne5+ {[%clk 0:00:43.7]} 35... Ke7 {[%clk 0:00:12.3]} 36.
Kf3 {[%clk 0:00:44.2]} 36... Kd6 {[%clk 0:00:12.2]} 37. Be4 {[%clk 0:00:44.1]}
37... g5 {[%clk 0:00:08.5]} 38. Nf7+ {[%clk 0:00:41]} 1-0

[Event "*** Titled Tuesday Blitz"]
[Site "Chess.com"]
[Date "2021.02.16"]
[Round "2"]
[White "ElCoachRene"]
[Black "InitiatingASC"]
[Result "0-1"]
[WhiteElo "2198"]
[BlackElo "2435"]
[TimeControl "180+1"]
[EndTime "10:18:53 PST"]
[Termination "InitiatingASC won by checkmate"]

1. d4 {[%clk 0:03:00.9]} 1... Nf6 {[%clk 0:02:58.3]} 2. Bf4 {[%clk 0:03:01.3]}
2... e6 {[%clk 0:02:57.1]} 3. e3 {[%clk 0:03:01.8]} 3... c5 {[%clk 0:02:54.8]}
4. c3 {[%clk 0:03:01.1]} 4... cxd4 {[%clk 0:02:53.4]} 5. exd4 {[%clk 0:02:59.6]}
5... b6 {[%clk 0:02:53.9]} 6. Nd2 {[%clk 0:02:57.5]} 6... Bb7 {[%clk 0:02:53.6]}
7. Ngf3 {[%clk 0:02:57.9]} 7... Be7 {[%clk 0:02:51.1]} 8. Bd3 {[%clk 0:02:57.6]}
8... O-O {[%clk 0:02:51.1]} 9. Qe2 {[%clk 0:02:58.1]} 9... a6 {[%clk 0:02:47.3]}
10. h3 {[%clk 0:02:57.6]} 10... d6 {[%clk 0:02:45.6]} 11. a4 {[%clk 0:02:57]}
11... Nbd7 {[%clk 0:02:44.3]} 12. O-O {[%clk 0:02:57.3]} 12... Qc7 {[%clk
0:02:39.8]} 13. Rfe1 {[%clk 0:02:57.6]} 13... Qc6 {[%clk 0:02:39.9]} 14. Qf1
{[%clk 0:02:53.8]} 14... Rfe8 {[%clk 0:02:38.4]} 15. Ng5 {[%clk 0:02:51.9]}
15... Nf8 {[%clk 0:02:36.3]} 16. Nde4 {[%clk 0:02:48.6]} 16... Ng6 {[%clk
0:02:35.7]} 17. Bh2 {[%clk 0:02:40.9]} 17... e5 {[%clk 0:02:22.9]} 18. dxe5
{[%clk 0:02:22.7]} 18... dxe5 {[%clk 0:02:21.1]} 19. Nxf6+ {[%clk 0:02:20.1]}
19... Qxf6 {[%clk 0:02:13]} 20. Be4 {[%clk 0:02:13.6]} 20... Bxe4 {[%clk
0:01:56.3]} 21. Nxe4 {[%clk 0:02:14.5]} 21... Qc6 {[%clk 0:01:56.3]} 22. Qe2
{[%clk 0:02:09]} 22... f5 {[%clk 0:01:40.2]} 23. Nd2 {[%clk 0:02:02.5]} 23...
Bf6 {[%clk 0:01:22.4]} 24. Nc4 {[%clk 0:01:41.6]} 24... Nh4 {[%clk 0:01:17.7]}
25. f3 {[%clk 0:01:32.1]} 25... f4 {[%clk 0:01:12.6]} 26. Na3 {[%clk 0:01:25.3]}
26... Nf5 {[%clk 0:01:11.8]} 27. Qc4+ {[%clk 0:01:24.4]} 27... Qxc4 {[%clk
0:01:12.2]} 28. Nxc4 {[%clk 0:01:25.1]} 28... Rab8 {[%clk 0:01:07.9]} 29. Kf1
{[%clk 0:01:20.2]} 29... b5 {[%clk 0:01:06.8]} 30. axb5 {[%clk 0:01:19.4]} 30...
axb5 {[%clk 0:01:06.9]} 31. Na3 {[%clk 0:01:05.1]} 31... Ne3+ {[%clk 0:01:06.2]}
32. Kg1 {[%clk 0:01:04.2]} 32... b4 {[%clk 0:01:06.8]} 33. cxb4 {[%clk
0:01:03.2]} 33... Rxb4 {[%clk 0:01:07.1]} 34. Re2 {[%clk 0:00:58.7]} 34... Reb8
{[%clk 0:01:05.7]} 35. Ra2 {[%clk 0:00:54.7]} 35... g5 {[%clk 0:00:57]} 36. Kh1
{[%clk 0:00:54.4]} 36... Rd8 {[%clk 0:00:44.5]} 37. Re1 {[%clk 0:00:47.7]} 37...
Rd2 {[%clk 0:00:42.2]} 38. Bg1 {[%clk 0:00:46.8]} 38... Nxg2 {[%clk 0:00:40.2]}
39. Bc5 {[%clk 0:00:42]} 39... Rbxb2 {[%clk 0:00:38]} 40. Rxb2 {[%clk
0:00:41.5]} 40... Rxb2 {[%clk 0:00:38.9]} 41. Nc4 {[%clk 0:00:39.1]} 41... Rc2
{[%clk 0:00:37.1]} 42. Re4 {[%clk 0:00:36.4]} 42... Nh4 {[%clk 0:00:34.4]} 43.
Bd6 {[%clk 0:00:17.5]} 43... Nxf3 {[%clk 0:00:32.6]} 44. Nxe5 {[%clk 0:00:12.8]}
44... Rh2# {[%clk 0:00:30.9]} 0-1

[Event "*** Titled Tuesday Blitz"]
[Site "Chess.com"]
[Date "2021.02.16"]
[Round "2"]
[White "abeljusto"]
[Black "IceBelka"]
[Result "0-1"]
[WhiteElo "2043"]
[BlackElo "2386"]
[TimeControl "180+1"]
[EndTime "10:18:55 PST"]
[Termination "IceBelka won on time"]

1. d4 {[%clk 0:03:00.9]} 1... d5 {[%clk 0:02:59.1]} 2. Bf4 {[%clk 0:02:59.8]}
2... e6 {[%clk 0:02:58.8]} 3. e3 {[%clk 0:02:59.1]} 3... Bd6 {[%clk 0:02:58.8]}
4. Bg3 {[%clk 0:02:58.1]} 4... Nf6 {[%clk 0:02:57]} 5. Nd2 {[%clk 0:02:55.9]}
5... c5 {[%clk 0:02:56.3]} 6. c3 {[%clk 0:02:54.9]} 6... Qc7 {[%clk 0:02:54.8]}
7. Ngf3 {[%clk 0:02:44.1]} 7... Nbd7 {[%clk 0:02:54]} 8. Bb5 {[%clk 0:02:43.6]}
8... O-O {[%clk 0:02:52.4]} 9. Bh4 {[%clk 0:02:19.8]} 9... a6 {[%clk 0:02:34.4]}
10. Bd3 {[%clk 0:01:56.4]} 10... b5 {[%clk 0:02:27.1]} 11. O-O {[%clk
0:01:44.4]} 11... Bb7 {[%clk 0:02:23.6]} 12. a4 {[%clk 0:01:38.7]} 12... c4
{[%clk 0:02:13.9]} 13. Bc2 {[%clk 0:01:37.5]} 13... b4 {[%clk 0:02:14.3]} 14.
cxb4 {[%clk 0:01:35.2]} 14... Bxb4 {[%clk 0:02:13.1]} 15. Bxf6 {[%clk
0:01:32.3]} 15... Nxf6 {[%clk 0:02:11.8]} 16. Ne5 {[%clk 0:01:31.6]} 16... Rfc8
{[%clk 0:01:51.4]} 17. Rc1 {[%clk 0:01:26.7]} 17... a5 {[%clk 0:01:37.2]} 18. f4
{[%clk 0:01:12.7]} 18... c3 {[%clk 0:01:33.4]} 19. bxc3 {[%clk 0:01:03]} 19...
Ba3 {[%clk 0:01:33.4]} 20. Rb1 {[%clk 0:00:51.6]} 20... Ba6 {[%clk 0:01:32.8]}
21. c4 {[%clk 0:00:44]} 21... dxc4 {[%clk 0:01:27.1]} 22. Ne4 {[%clk 0:00:36.1]}
22... Nxe4 {[%clk 0:01:10.1]} 23. Bxe4 {[%clk 0:00:37]} 23... Rab8 {[%clk
0:01:10.4]} 24. Rxb8 {[%clk 0:00:34]} 24... Rxb8 {[%clk 0:01:09.6]} 25. Qh5
{[%clk 0:00:30.8]} 25... f5 {[%clk 0:01:09.6]} 26. Bf3 {[%clk 0:00:20.5]} 26...
c3 {[%clk 0:01:08.1]} 27. d5 {[%clk 0:00:19]} 27... Bxf1 {[%clk 0:01:04]} 28.
dxe6 {[%clk 0:00:17.4]} 28... Bc4 {[%clk 0:00:50.2]} 29. Qxf5 {[%clk 0:00:07.7]}
29... Bb3 {[%clk 0:00:34.4]} 30. Be4 {[%clk 0:00:06.8]} 30... g6 {[%clk
0:00:30]} 31. Qg5 {[%clk 0:00:06.4]} 31... c2 {[%clk 0:00:25.5]} 32. Nf7 {[%clk
0:00:04.1]} 32... c1=Q+ {[%clk 0:00:23.7]} 33. Kf2 {[%clk 0:00:03.9]} 33... Bxe6
{[%clk 0:00:19.6]} 34. Nh6+ {[%clk 0:00:03]} 34... Kg7 {[%clk 0:00:20]} 0-1